Cogmind - Beta 16 @@@ ROGUE MODE // 2025.12.27 @ 14:32:47 Player: Compilatron Result: Destroyed by as-72601 with Assembled Heavy Rifle Performance ------------- Evolutions (0) 0 Regions Visited (2) 400 Robots Destroyed (13) 65 Value Destroyed (295) 295 Prototype IDs (0) 0 Alien Tech Used (0) 0 Bonus (0) 0 TOTAL SCORE: 760 Bonus ------- None Cogmind --------- Core Integrity 0/250 Matter 135/300 Energy 100/100 System Corruption 0% Temperature Cool (20) Movement Core (350) Ox6 Location -10/Mines Parts ------- > --- POWER (1) -------- (None) > --- PROPULSION (2) --- (None) > --- UTILITY (2) ------ Large Storage Unit > --- WEAPON (2) ------- (None) > --- INVENTORY (15) --- Aluminum Leg Aluminum Leg High-capacity Matter Pod (0) Structural Scanner Sensor Array Terrain Scanner Improved Targeting Computer EM Pulse Gun Peak State ------------ > --- POWER ------------ Ion Engine > --- PROPULSION ------- Light Treads Light Treads > --- UTILITY ---------- Large Storage Unit Light Armor Plating > --- WEAPON ----------- Medium Laser Grenade Launcher > --- INVENTORY -------- Aluminum Leg Aluminum Leg High-capacity Matter Pod Structural Scanner Sensor Array Terrain Scanner Improved Targeting Computer EM Pulse Gun Hammer [Rating: 8] Favorites ----------- Power Light Ion Engine Engine Light Ion Engine Propulsion Light Treads Treads Light Treads Leg Aluminum Leg Wheel Wheel Utility Large Storage Unit Storage Large Storage Unit Protection Backup Plating I Weapon Medium Laser Energy Gun Medium Laser Ballistic Gun Assault Rifle Launcher Grenade Launcher Impact Weapon Hammer Build | -11 -10 -10 ------- Run | Yrd Mat Min Slots Evolved . | . . . Power . | . . . Propulsion . | . . . Utility . | . . . Weapon . | . . . Parts Attached 12 | . 12 . Power 2 | . 2 . Engine 2 | . 2 . Core . | . . . Reactor . | . . . Propulsion 4 | . 4 . Treads 2 | . 2 . Leg . | . . . Wheel 2 | . 2 . Hover . | . . . Flight . | . . . Utility 2 | . 2 . Device . | . . . Storage 1 | . 1 . Processor . | . . . Hackware . | . . . Protection 1 | . 1 . Artifact . | . . . Weapon 4 | . 4 . Energy Gun 1 | . 1 . Energy Cannon . | . . . Ballistic Gun 1 | . 1 . Ballistic Cannon . | . . . Launcher 1 | . 1 . Special Weapon . | . . . Impact Weapon 1 | . 1 . Slashing Weapon . | . . . Piercing Weapon . | . . . Special Melee Weapon . | . . . Unidentified Prototypes . | . . . Parts Lost 8 | . 2 6 Power 1 | . . 1 Propulsion 2 | . . 2 Utility 1 | . 1 . Weapon 4 | . 1 3 Highest Loss Streak 6 | . 1 6 To Critical Strikes . | . . . Average Backups 8 | . 8 8 Power . | . . . Propulsion 2 | . 2 2 Utility 2 | . 2 5 Weapon 2 | . 2 1 Tool/Special . | . . . Unused Backups 10 | . 2 8 Power 1 | . 1 . Propulsion 2 | . . 2 Utility 6 | . 1 5 Weapon 1 | . . 1 Tool/Special . | . . . Average Slot Usage (%) 88 | . 89 80 Engine 13 | . 13 9 Treads 16 | . 16 18 Wheel 10 | . 11 . Storage 14 | . 14 14 Protection 6 | . 5 9 Energy Gun 12 | . 12 14 Ballistic Gun 9 | . 9 . Launcher 3 | . 3 9 Peak Build Rating 8 | . 8 8 Average Rating 6 | . 6 6 On Entrance 6 | 6 6 8 Avg Prop Armor Cover (%) . | . . . Naked Turns . | . . . Heaviest Build 33 | 12 33 33 Greatest Support 40 | 20 40 40 Greatest Overweight (x) 6 | . 2 6 Average Overweight (x) . | . . 2 Largest Inventory Capacity 15 | . 15 15 Average Capacity 14 | . 14 15 Most Carried 10 | . 10 9 Average Carried 8 | . 8 8 Final Capacity 15 | 8 15 15 Final Carried 9 | 6 9 8 Class Distribution -------------------- 100% | Mutant Dominant Class ---------------- Mutant | -10/Materials Mutant | -10/Mines Resources | -11 -10 -10 ----------- Run | Yrd Mat Min Matter Collected 308 | 200 107 1 Remotely . | . . . Salvage Created 310 | . 282 28 Parts 26 | . 26 . Haulers Intercepted 1 | . 1 . Recyclers Shooed . | . . . Parts Field Recycled . | . . . Retrieved Matter . | . . . Parts Self-Destructed . | . . . Prevented . | . . . Parts Restored . | . . . Kills | -11 -10 -10 ------- Run | Yrd Mat Min Combat Hostiles Destroyed 19 | . 9 10 Melee 1 | . . 1 Guns 5 | . 5 . AOE 13 | . 4 9 Classes Destroyed 6 | . 5 1 Builder 2 | . 2 . Hauler 1 | . 1 . Operator 1 | . 1 . Swarmer 3 | . 3 . Grunt 6 | . 6 . Assembled 10 | . . 10 Best Kill Streak 10 | . 5 10 Combat Bots Only 10 | . 4 10 Max Kills in Single Turn 4 | . 4 3 Gunslinging . | . . . Exploded 3 | . 2 3 Melee 1 | . . 1 Uniques/NPCs Destroyed . | . . . Combat | -11 -10 -10 -------- Run | Yrd Mat Min Hostile Shots Fired 92 | . 45 47 Missed 22 | . 8 14 Hits 70 | . 37 33 Melee 8 | . . 8 Projectile 62 | . 37 25 Critical Strikes 1 | . . 1 Part Disruptions 1 | . . 1 Damage Taken 1071 | . 475 596 Core 252 | . 44 208 Absorbed by Shields . | . . . Core Remaining (%) 100 | 100 . . Volleys Fired 32 | . 28 4 Largest 2 | . 2 2 Hottest 80 | . 80 80 Shots Fired 60 | . 52 8 Gun 47 | . 43 4 Cannon . | . . . Launcher 13 | . 9 4 Special . | . . . Kinetic 16 | . 16 . Thermal 31 | . 27 4 Explosive 13 | . 9 4 Electromagnetic . | . . . Robot Hit Streak 6 | . 6 3 Robot Miss Streak 3 | . 3 1 Penetration Max . | . . . Secondary Targets . | . . . Shots Hit Robots 35 | . 28 7 Core Hits 43 | . 19 24 Critical Kills . | . . . Critical Parts Destroyed . | . . . Critical Strikes 2 | . 2 . Burn 2 | . 2 . Melee Attacks 3 | . 1 2 Impact 3 | . 1 2 Slashing . | . . . Piercing . | . . . Sneak Attacks 1 | . 1 . Combat Hostiles . | . . . Follow-up Attacks . | . . . Damage Inflicted 1338 | . 676 662 Guns 326 | . 289 37 Cannons . | . . . Explosions 934 | . 355 579 Melee 78 | . 32 46 Ramming . | . . . Kinetic 119 | . 119 . Thermal 207 | . 170 37 Explosive 934 | . 355 579 Electromagnetic . | . . . Impact 78 | . 32 46 Slashing . | . . . Piercing . | . . . Highest Corruption . | . . . Average Corruption . | . . . Corruption Purged . | . . . Corruption Blocked . | . . . Overload Shots . | . . . Overflow Damage 38 | . 19 19 Projectiles . | . . . Explosions 28 | . 9 19 Melee 10 | . 10 . Knockbacks . | . . . Impact . | . . . Kinetic . | . . . Secondary . | . . . Self-Inflicted Damage 62 | . 61 1 Shots 5 | . 4 1 Rammed . | . . . Targets Rammed . | . . . Kicked . | . . . Crushed . | . . . Highest Temperature 308 | . 308 145 Average Temperature 84 | . 86 75 Received Heat Transfer 304 | . 204 100 Effects 1 | . 1 . Energy Bleed 1 | . 1 . Siege Activations . | . . . Martial Activations . | . . . Shielding Activations . | . . . Robots Disrupted . | . . . Combat Hostiles . | . . . Robots Corrupted 1 | . 1 . Combat Hostiles . | . . . Parts Fried . | . . . Impact Corruptions 1 | . 1 . Robots Melted . | . . . Combat Hostiles . | . . . Parts Melted . | . . . Heat Transferred 777 | . 666 111 Parts Sabotaged . | . . . Parts Stolen . | . . . Parts Stripped . | . . . Power Chain Reactions . | . . . Alert | -11 -10 -10 ------- Run | Yrd Mat Min Maximum Alert Level 1 | . 1 . Low Security (%) 91 | . 91 100 Level 1 8 | . 8 . Level 2 . | . . . Level 3 . | . . . Level 4 . | . . . Level 5 . | . . . High Security . | . . . Max Security . | . . . Peak Influence 234 | . 234 106 Initial 87 | . . 87 Average 44 | . 43 83 Influence Increases 385 | . 366 19 Destroy 0b10 Robot/C 180 | . 180 . Destroy 0b10 Robot/NC 20 | . 20 . Destroy Leader 42 | . 42 . Successful Hack 5 | . 5 . Disable Machine 30 | . 30 . Destroy Structure 78 | . 59 19 Lose Combat Pursuer 30 | . 30 . Influence Decreases 349 | . 140 209 Entered New Map 139 | . . 139 Time Decay 140 | . 130 10 Lost Part 70 | . 10 60 Squads Dispatched 3 | . 3 . Investigation 1 | . 1 . Extermination . | . . . Reinforcement 2 | . 2 . Assault . | . . . Garrison . | . . . Intercept . | . . . Searches Triggered . | . . . Construction Impeded . | . . . Haulers Reinforced . | . . . Active Scanning Responses . | . . . Cargo Convoy Interrupts . | . . . Stealth | -11 -10 -10 --------- Run | Yrd Mat Min Distress Signals 1 | . 1 . Communications Jammed . | . . . Distress Signals . | . . . Times Spotted 37 | . 17 20 Peak Tracking Total 20 | . 8 20 Tactical Retreats 1 | . 1 . Traps | -11 -10 -10 ------- Run | Yrd Mat Min Traps Triggered 4 | . 4 . Indirectly . | . . . Trap Hack Attempts . | . . . Triggered . | . . . Disarmed 3 | . 3 . Reprogrammed . | . . . Reused . | . . . Traps Extracted . | . . . Installed . | . . . Triggered . | . . . Machines | -11 -10 -10 ---------- Run | Yrd Mat Min Machines Disabled 3 | . 3 . Max in Single Turn 2 | . 2 . Machines Repaired . | . . . Machines Dismantled . | . . . Machines Sabotaged . | . . . Overloaded Fab Kills . | . . . Hacking | -11 -10 -10 --------- Run | Yrd Mat Min Machines Accessed 6 | . 6 . Terminals 3 | . 3 . Fabricators . | . . . Repair Stations 1 | . 1 . Recycling Units 2 | . 2 . Scanalyzers . | . . . Garrison Access . | . . . Total Hacks 16 | . 16 . Successful 8 | . 8 . Failed 8 | . 8 . Catastrophic . | . . . Database Lockouts . | . . . Manual 10 | . 10 . Terminals 12 | . 12 . Fabricators . | . . . Repair Stations 2 | . 2 . Recycling Units 2 | . 2 . Scanalyzers . | . . . Garrison Access . | . . . Terminal Hacks 2 | . 2 . Locate Traps 1 | . 1 . Disarm Traps 1 | . 1 . Fabricator Hacks . | . . . Repair Station Hacks 1 | . 1 . Refit 1 | . 1 . Recycling Unit Hacks 2 | . 2 . Report Inventory 2 | . 2 . Scanalyzer . | . . . Garrison Access Hacks . | . . . Unauthorized Hacks 3 | . 3 . Terminals 3 | . 3 . Botnet 2 | . 2 . Operators 1 | . 1 . Fabricators . | . . . Repair Stations . | . . . Recycling Units . | . . . Scanalyzers . | . . . Garrison Access . | . . . Data Cores Recovered . | . . . Used . | . . . Hacking Detections 3 | . 3 . Full Trace Events . | . . . Feedback Events . | . . . Feedback Blocked . | . . . Robot Schematics Acquired . | . . . Robots Built . | . . . Authchips . | . . . Time . | . . . Total Robot Build Rating . | . . . Part Schematics Acquired . | . . . Parts Built . | . . . Authchips . | . . . Time . | . . . Total Part Build Rating . | . . . Part Studies Acquired . | . . . Parts Repaired . | . . . Time . | . . . Parts Recycled . | . . . Recycled Matter . | . . . Retrieved Matter . | . . . Retrieved Components . | . . . Parts Scanalyzed . | . . . Part Schematics Acquired . | . . . Parts Damaged . | . . . Bothacking | -11 -10 -10 ------------ Run | Yrd Mat Min Used RIF Installer . | . . . Robots Hacked . | . . . Non-combat . | . . . Combat . | . . . Robot Hacks Applied . | . . . Relay Couplers Released . | . . . Fabnet Peak Effective % . | . . . Robots Rewired . | . . . Allies Hacked . | . . . Hacks Repelled . | . . . Allies | -11 -10 -10 -------- Run | Yrd Mat Min Total Allies . | . . . Largest Group . | . . . Highest-Rated Group . | . . . Highest-Rated Ally . | . . . Total Orders . | . . . Ally Attacks . | . . . Total Damage . | . . . Kills . | . . . Allies Corrupted . | . . . Allies Melted . | . . . Intel | -11 -10 -10 ------- Run | Yrd Mat Min Active Infowar (turns) . | . . . Robot Analysis Total . | . . . Derelict Logs Recovered . | . . . Drone Launches . | . . . Drone Recoveries . | . . . Exploration | -11 -10 -10 ------------- Run | Yrd Mat Min Turns Passed 793 | . 769 24 Spaces Moved 505 | 1 501 3 Core 1 | . . 1 Treads 217 | . 215 2 Legs 4 | 1 3 . Wheels 283 | . 283 . Hover . | . . . Flight . | . . . Fastest Speed 105 | 120 105 160 Average Speed 129 | 120 128 223 Slowest Speed 350 | 120 160 350 Overloaded Moves . | . . . Propulsion Burnouts . | . . . Robots Hopped . | . . . Potential Cave-ins . | . . . Cave-ins Triggered . | . . . Exploration Rate (%) 30 | 2 85 4 Regions Visited 2 Branch Regions 1 Pre-discovered Areas . | . . . Known Exits Taken . | . . . Unknown Exits Taken 2 | 1 1 . Scrap Searched . | . . . Spaces Dug 12 | . 12 . Terrain Destroyed 95 | . 61 34 Melee . | . . . Projectile . | . . . AOE 95 | . 61 34 Terrain Rammed . | . . . Walls Destroyed . | . . . Machines Disabled . | . . . Actions | -11 -10 -10 --------- Run | Yrd Mat Min Total 581 | . 571 10 Wait 16 | . 16 . Move 503 | . 500 3 Hop . | . . . Pick Up 12 | . 12 . Fast Attach . | . . . Attach 9 | . 8 1 Detach . | . . . Swap 4 | . 4 . Drop 2 | . 2 . Fire 32 | . 28 4 Melee 3 | . 1 2 Ram . | . . . Kick . | . . . Crush . | . . . Escape Stasis . | . . . Rewire . | . . . Trap . | . . . Miscellaneous . | . . . Route ------- -11/Scrapyard -10/Materials (discovered 5 exits: [*Mat x3] / [*Min x2]) -10/Mines History --------- Turn | Location | Event 1 | -11/Scrapyard | Discovered new exit (range 0) 1 | -11/Scrapyard | Entered Materials 115 | -10/Materials | Discovered new exit (range 7) 193 | -10/Materials | Discovered new exit (range 16) 341 | -10/Materials | Build established: Mutant 428 | -10/Materials | Discovered new exit (range 11) 526 | -10/Materials | Discovered new exit (range 9) 667 | -10/Materials | Discovered new exit (range 10) 770 | -10/Materials | Entered Mines 771 | -10/Mines | Assembled infested the area 792 | -10/Mines | Core integrity fell below 50% 794 | -10/Mines | Core integrity fell below 20% 794 | -10/Mines | Destroyed by as-72601 with Assembled Heavy Rifle Last Messages --------------- 00777_ as-50594 destroyed. 00777_ Destroyed Asb. Hover Unit. 00777_ as-64560 destroyed. 00777_ as-83034 destroyed. 00779_ The unstable cave ceiling collapses. 00779_ T-07 Excavator destroyed. 00780_ as-21397 destroyed. 00780_ as-88999 destroyed. 00783_ as-41653 destroyed. 00783_ as-41047 destroyed. 00783_ as-87339 destroyed. 00784_ The unstable cave ceiling collapses. 00785_ Grenade Launcher destroyed. 00785_ Lgt. Armor Plating severed. 00787_ Ion Engine destroyed. 00788_ Lgt. Treads destroyed. 00789_ as-60148 destroyed. 00790_ Med. Laser destroyed. 00791_ Hammer destroyed. 00792_ Acquired 1 matter. Map ----- +----------------------------------------------------+ | ???????????????????????????????????? | | ???????????????????????????????????? | | ???????????????????????????????????? | | ???????????????????????????????????? | | ???????????????????????????????????? | | ???????????????????????????????????? | | ???????????????????????????????????? | | ???????????????????????????????????? | | ???????????????????????????????????? | | ???????????????????????????????????? | | ???????????????????????????????????? | | ???????????????????????????????????? | | ???????????????????????????????????? | | ???????????????????????????????????? | | ???????????????????????????????????? | | ???????????????????????????????????? | | ???????????????????????????????????? | | ???????????????????????????????????? | | ???????????????????????????????????? | | ???????????????????????????????????? | | ???????????????????????????????????? | | ????????????#####??#???????????????? | | ???????????? # ### ??????????? | | ????????#### a ????????? | | ???????## a # ????????? | | ?????### !@ a ????????? | | ?????# a aaaa%a ????????? | | ?????# ????????? | | ?????## # ##### ?????????? | | ??????##### ## # ##???????????????? | | ???????????###??#?#????????????????? | | ???????????????????????????????????? | | | | | | | | | | | | | | | | | | | | | | | | | | | | | | | | | | | | | +----------------------------------------------------+ Best States ------------- Heat Dissipation 25 Energy Generation 10 Energy Capacity 250 Matter Stores 285 Matter Capacity 300 Sight Range 16 Terrain Scan Density 10 Armor Coverage 150 Evasion (%) 40 Recoil Reduction 2 Item Schematics ----------------- None Robot Schematics ------------------ None Fabricated ------------ Nothing Repaired ---------- Nothing Studied --------- None Alien Tech Used ----------------- None Achievements -------------- None Challenges ------------ None Game ------ Seed NetworkedJunkWell Manual? 0 Play Time 00:07:33 Cumulative 67.6 hours Start 2025.12.27 @ 14:25:13 End 2025.12.27 @ 14:32:47 Sessions 1 Manual Loads 0 Difficulty Rogue Special Mode None Game No. 104 Rogue 82 Adventurer 20 Explorer 2 Win Type - Total 0 Types 0/0/0/0/0/0/0/0/0/0 Lore% 44 Gallery% 39 Achievement% 27 Wizard Run 0 Options --------- Layout 1 ASCII 0 Keyboard 0 Movement Numpad Keybinds 0 Fullscreen 2 Font 24/Smallcaps Map View 50x35 Zoom Use 0% Tactical HUD 1 Map Filters NONE Filters NONE Steam 1 RUN: f9ed35a8-0c40-4215-8a37-7d485ccb1ae3